[Event "Live Chess"]
[Site "Chess.com"]
[Date "2024.06.01"]
[Round "-"]
[White "wadsy27"]
[Black "MagnersCarlsberg2870"]
[Result "1-0"]
[WhiteElo "2541"]
[BlackElo "1766"]
[TimeControl "300"]
[EndTime "15:15:58 PDT"]
[Termination "wadsy27 won by resignation"]

1. c4 {[%clk 0:04:57.2]} 1... c5 {[%clk 0:04:55.6]} 2. g3 {[%clk 0:04:49]} 2...
g6 {[%clk 0:04:53.6]} 3. Bg2 {[%clk 0:04:45.3]} 3... Bg7 {[%clk 0:04:52.5]} 4.
Nc3 {[%clk 0:04:42.8]} 4... Nc6 {[%clk 0:04:51.4]} 5. Nf3 {[%clk 0:04:42]} 5...
Nf6 {[%clk 0:04:50.1]} 6. d4 {[%clk 0:04:41.2]} 6... cxd4 {[%clk 0:04:47]} 7.
Nxd4 {[%clk 0:04:41.1]} 7... Nxd4 {[%clk 0:04:46]} 8. Qxd4 {[%clk 0:04:41]} 8...
d6 {[%clk 0:04:40.1]} 9. O-O {[%clk 0:04:39.9]} 9... O-O {[%clk 0:04:38.8]} 10.
Qd3 {[%clk 0:04:38.7]} 10... Bf5 {[%clk 0:04:36.6]} 11. e4 {[%clk 0:04:36.1]}
11... Be6 {[%clk 0:04:35.1]} 12. Bd2 {[%clk 0:04:35]} 12... Rc8 {[%clk 0:04:33]}
13. b3 {[%clk 0:04:34.3]} 13... Ng4 {[%clk 0:04:24.6]} 14. h3 {[%clk 0:04:30.9]}
14... Ne5 {[%clk 0:04:22.9]} 15. Qe2 {[%clk 0:04:30.5]} 15... Qd7 {[%clk
0:04:21.8]} 16. Kh2 {[%clk 0:04:29.6]} 16... a6 {[%clk 0:04:11.6]} 17. Rae1
{[%clk 0:04:28.6]} 17... f5 {[%clk 0:03:58.1]} 18. exf5 {[%clk 0:04:25.1]} 18...
Rxf5 {[%clk 0:03:50.4]} 19. f4 {[%clk 0:04:23.4]} 19... Nc6 {[%clk 0:03:43.5]}
20. Qxe6+ {[%clk 0:04:21.8]} 20... Qxe6 {[%clk 0:03:41.9]} 21. Rxe6 {[%clk
0:04:21.7]} 21... Kf7 {[%clk 0:03:39.9]} 22. Bd5 {[%clk 0:04:20.8]} 22... Nb4
{[%clk 0:03:34.3]} 23. Rfe1 {[%clk 0:04:16.9]} 23... Nxd5 {[%clk 0:03:27.8]} 24.
Nxd5 {[%clk 0:04:16.8]} 1-0

[Event "Live Chess"]
[Site "Chess.com"]
[Date "2024.06.01"]
[Round "-"]
[White "Cruiseylee78"]
[Black "CarmelJane"]
[Result "0-1"]
[WhiteElo "1695"]
[BlackElo "2071"]
[TimeControl "300"]
[EndTime "15:16:06 PDT"]
[Termination "CarmelJane won by resignation"]

1. d4 {[%clk 0:04:52.1]} 1... Nf6 {[%clk 0:04:58.7]} 2. Bf4 {[%clk 0:04:51.6]}
2... c5 {[%clk 0:04:56.8]} 3. e3 {[%clk 0:04:51.5]} 3... cxd4 {[%clk 0:04:53.6]}
4. exd4 {[%clk 0:04:51.4]} 4... Qb6 {[%clk 0:04:53.1]} 5. b3 {[%clk 0:04:48.5]}
5... Nc6 {[%clk 0:04:46.5]} 6. Nf3 {[%clk 0:04:45.9]} 6... d5 {[%clk 0:04:45.2]}
7. Bd3 {[%clk 0:04:44.3]} 7... Bg4 {[%clk 0:04:44.6]} 8. Nbd2 {[%clk 0:04:42.8]}
8... Nxd4 {[%clk 0:04:39.2]} 9. h3 {[%clk 0:04:23.3]} 9... Nxf3+ {[%clk
0:04:27.2]} 10. Nxf3 {[%clk 0:04:23.2]} 10... Bh5 {[%clk 0:04:25.9]} 11. g4
{[%clk 0:04:22.1]} 11... Bg6 {[%clk 0:04:24.1]} 12. Bxg6 {[%clk 0:04:19.6]}
12... hxg6 {[%clk 0:04:24]} 13. Qd2 {[%clk 0:04:12.7]} 13... e6 {[%clk
0:04:16.3]} 14. Ne5 {[%clk 0:04:10.7]} 14... Bb4 {[%clk 0:04:06.9]} 15. c3
{[%clk 0:04:08.9]} 15... Ne4 {[%clk 0:04:05.6]} 16. Qd4 {[%clk 0:03:48.4]} 16...
Bxc3+ {[%clk 0:04:02.7]} 0-1

[Event "Live Chess"]
[Site "Chess.com"]
[Date "2024.06.01"]
[Round "-"]
[White "upoe610"]
[Black "Zhevzh1k7"]
[Result "1-0"]
[WhiteElo "2203"]
[BlackElo "1109"]
[TimeControl "300"]
[EndTime "15:16:07 PDT"]
[Termination "upoe610 won by checkmate"]

1. e4 {[%clk 0:04:57.7]} 1... c6 {[%clk 0:04:58.4]} 2. Nc3 {[%clk 0:04:56.6]}
2... d5 {[%clk 0:04:56.5]} 3. Nf3 {[%clk 0:04:55.3]} 3... Bg4 {[%clk 0:04:51.9]}
4. h3 {[%clk 0:04:53.8]} 4... Bxf3 {[%clk 0:04:50.4]} 5. Qxf3 {[%clk 0:04:53.3]}
5... dxe4 {[%clk 0:04:39.7]} 6. Nxe4 {[%clk 0:04:51]} 6... Nd7 {[%clk
0:04:39.2]} 7. Bc4 {[%clk 0:04:48.3]} 7... Ngf6 {[%clk 0:04:34.2]} 8. Ng5 {[%clk
0:04:40.6]} 8... e6 {[%clk 0:04:29.5]} 9. Qe2 {[%clk 0:04:38.8]} 9... Be7 {[%clk
0:04:24.7]} 10. Nxf7 {[%clk 0:04:37.5]} 10... Kxf7 {[%clk 0:04:21.1]} 11. Qxe6+
{[%clk 0:04:36]} 11... Kg6 {[%clk 0:04:15.3]} 12. Qf7+ {[%clk 0:04:34.3]} 12...
Kh6 {[%clk 0:04:11.7]} 13. d4+ {[%clk 0:04:30.6]} 13... g5 {[%clk 0:04:05.7]}
14. h4 {[%clk 0:04:29.9]} 14... Rg8 {[%clk 0:03:51.8]} 15. hxg5# {[%clk
0:04:28.7]} 1-0

[Event "Live Chess"]
[Site "Chess.com"]
[Date "2024.06.01"]
[Round "-"]
[White "MellowAesthetic"]
[Black "AlexanderMatlak"]
[Result "1-0"]
[WhiteElo "2088"]
[BlackElo "2406"]
[TimeControl "300"]
[EndTime "15:16:30 PDT"]
[Termination "MellowAesthetic won by resignation"]

1. e4 {[%clk 0:04:58.7]} 1... c5 {[%clk 0:04:58.6]} 2. Nf3 {[%clk 0:04:57.3]}
2... d6 {[%clk 0:04:58]} 3. d4 {[%clk 0:04:56.7]} 3... cxd4 {[%clk 0:04:57.4]}
4. Nxd4 {[%clk 0:04:56.6]} 4... Nf6 {[%clk 0:04:56.9]} 5. Nc3 {[%clk 0:04:55.7]}
5... a6 {[%clk 0:04:56.1]} 6. Bg5 {[%clk 0:04:54.3]} 6... e6 {[%clk 0:04:55.1]}
7. f4 {[%clk 0:04:53.3]} 7... Nbd7 {[%clk 0:04:54.1]} 8. Qf3 {[%clk 0:04:51.9]}
8... Qc7 {[%clk 0:04:48.8]} 9. O-O-O {[%clk 0:04:50.9]} 9... b5 {[%clk
0:04:48.1]} 10. Bxf6 {[%clk 0:04:31.7]} 10... gxf6 {[%clk 0:04:36.9]} 11. f5
{[%clk 0:04:26.5]} 11... Nc5 {[%clk 0:04:18]} 12. fxe6 {[%clk 0:04:04.6]} 12...
fxe6 {[%clk 0:04:11.8]} 13. Qxf6 {[%clk 0:03:58.6]} 13... Bg7 {[%clk 0:04:10]}
14. Bxb5+ {[%clk 0:03:23.6]} 14... axb5 {[%clk 0:04:06.9]} 15. Ndxb5 {[%clk
0:03:18.1]} 15... Bxf6 {[%clk 0:03:47.5]} 16. Nxc7+ {[%clk 0:03:16.8]} 16... Kd7
{[%clk 0:03:26.8]} 17. Nxa8 {[%clk 0:03:16.7]} 17... Kc6 {[%clk 0:03:26.1]} 18.
Nb6 {[%clk 0:02:22.7]} 18... Kxb6 {[%clk 0:03:23.5]} 19. Rxd6+ {[%clk
0:02:21.9]} 19... Kb7 {[%clk 0:03:12.3]} 20. b4 {[%clk 0:02:05.7]} 20... Na6
{[%clk 0:03:07.1]} 21. b5 {[%clk 0:01:40.6]} 21... Nc5 {[%clk 0:03:01.3]} 22.
Rc6 {[%clk 0:01:20.4]} 22... Be7 {[%clk 0:03:00.5]} 23. Rd1 {[%clk 0:01:11.3]}
23... Rf8 {[%clk 0:02:57.8]} 24. a4 {[%clk 0:01:08.9]} 24... Rf2 {[%clk
0:02:55.3]} 25. a5 {[%clk 0:01:07.8]} 25... Rf8 {[%clk 0:01:53.6]} 26. a6+
{[%clk 0:01:02.9]} 26... Kb8 {[%clk 0:01:53]} 27. a7+ {[%clk 0:00:44.1]} 27...
Ka8 {[%clk 0:01:51.3]} 28. Rc7 {[%clk 0:00:42.9]} 28... Re8 {[%clk 0:01:45.5]}
29. Rf1 {[%clk 0:00:35]} 29... Nb7 {[%clk 0:01:19.2]} 30. Rf7 {[%clk 0:00:29.7]}
30... Bd6 {[%clk 0:01:14.4]} 31. Rc6 {[%clk 0:00:23.4]} 31... Be5 {[%clk
0:01:07.7]} 32. Na4 {[%clk 0:00:21.9]} 32... Kxa7 {[%clk 0:01:06.5]} 33. Ra6+
{[%clk 0:00:20.4]} 33... Kb8 {[%clk 0:01:05.4]} 34. Nb6 {[%clk 0:00:19.8]} 1-0

[Event "Live Chess"]
[Site "Chess.com"]
[Date "2024.06.01"]
[Round "-"]
[White "nigelst"]
[Black "Cimon"]
[Result "1-0"]
[WhiteElo "1686"]
[BlackElo "1808"]
[TimeControl "300"]
[EndTime "15:16:37 PDT"]
[Termination "nigelst won on time"]

1. e4 {[%clk 0:04:57.9]} 1... e5 {[%clk 0:04:56.5]} 2. Nf3 {[%clk 0:04:57.3]}
2... Nc6 {[%clk 0:04:54.7]} 3. Bb5 {[%clk 0:04:54]} 3... Nf6 {[%clk 0:04:50.8]}
4. O-O {[%clk 0:04:51.4]} 4... Nxe4 {[%clk 0:04:47.7]} 5. d4 {[%clk 0:04:48.7]}
5... Nd6 {[%clk 0:04:45.5]} 6. Bxc6 {[%clk 0:04:46.8]} 6... dxc6 {[%clk
0:04:44.2]} 7. dxe5 {[%clk 0:04:46.3]} 7... Nf5 {[%clk 0:04:43]} 8. Qxd8+ {[%clk
0:04:45]} 8... Kxd8 {[%clk 0:04:41.2]} 9. Nc3 {[%clk 0:04:41.2]} 9... h6 {[%clk
0:04:38]} 10. Bf4 {[%clk 0:04:37.4]} 10... Bd7 {[%clk 0:04:29.2]} 11. Rad1
{[%clk 0:04:33.9]} 11... Kc8 {[%clk 0:04:27.8]} 12. g4 {[%clk 0:04:23.3]} 12...
Ne7 {[%clk 0:04:22.2]} 13. h3 {[%clk 0:04:21.3]} 13... g6 {[%clk 0:04:14]} 14.
Rfe1 {[%clk 0:04:17.5]} 14... c5 {[%clk 0:03:55.9]} 15. Nd5 {[%clk 0:04:12]}
15... Nxd5 {[%clk 0:03:51.8]} 16. Rxd5 {[%clk 0:04:10]} 16... Be6 {[%clk
0:03:29.1]} 17. Rdd1 {[%clk 0:04:03.3]} 17... c6 {[%clk 0:03:22.1]} 18. b3
{[%clk 0:04:00.6]} 18... Kc7 {[%clk 0:03:17.8]} 19. c4 {[%clk 0:03:59.3]} 19...
Be7 {[%clk 0:03:14.6]} 20. Nd2 {[%clk 0:03:55.7]} 20... Rad8 {[%clk 0:03:02.6]}
21. Ne4 {[%clk 0:03:53.5]} 21... Rd4 {[%clk 0:02:42.4]} 22. Bg3 {[%clk
0:03:50.4]} 22... Rhd8 {[%clk 0:02:38.6]} 23. Nc3 {[%clk 0:03:45]} 23... Rd2
{[%clk 0:02:09.1]} 24. Rxd2 {[%clk 0:03:38.7]} 24... Rxd2 {[%clk 0:02:06.7]} 25.
Re2 {[%clk 0:03:38.1]} 25... Rxe2 {[%clk 0:01:52.6]} 26. Nxe2 {[%clk 0:03:35.8]}
26... b5 {[%clk 0:01:50.6]} 27. Nf4 {[%clk 0:03:27.3]} 27... Bd7 {[%clk
0:01:34.8]} 28. cxb5 {[%clk 0:03:24.4]} 28... cxb5 {[%clk 0:01:32.8]} 29. Nd5+
{[%clk 0:03:21.8]} 29... Kd8 {[%clk 0:01:28.9]} 30. Nxe7 {[%clk 0:03:16.8]}
30... Kxe7 {[%clk 0:01:27.8]} 31. f4 {[%clk 0:03:16.1]} 31... Be6 {[%clk
0:01:17.6]} 32. Kf2 {[%clk 0:03:12.7]} 32... Kd7 {[%clk 0:01:12.7]} 33. Ke3
{[%clk 0:03:11.4]} 33... Kc6 {[%clk 0:01:09.9]} 34. Kd3 {[%clk 0:03:09.9]} 34...
Kd5 {[%clk 0:01:00.6]} 35. Bf2 {[%clk 0:03:05.5]} 35... a5 {[%clk 0:00:55]} 36.
a3 {[%clk 0:02:53.1]} 36... c4+ {[%clk 0:00:49]} 37. bxc4+ {[%clk 0:02:51.4]}
37... bxc4+ {[%clk 0:00:47.4]} 38. Kc3 {[%clk 0:02:49.6]} 38... Ke4 {[%clk
0:00:44.7]} 39. f5 {[%clk 0:02:34.7]} 39... gxf5 {[%clk 0:00:43.2]} 40. gxf5
{[%clk 0:02:33.7]} 40... Kxf5 {[%clk 0:00:42.2]} 41. Be3 {[%clk 0:02:29.1]}
41... h5 {[%clk 0:00:40.4]} 42. Bd4 {[%clk 0:02:26.3]} 42... Ke4 {[%clk
0:00:37.9]} 43. h4 {[%clk 0:02:23.1]} 43... Kf3 {[%clk 0:00:32.9]} 44. a4 {[%clk
0:02:17.8]} 44... Kg4 {[%clk 0:00:30.6]} 45. Bb6 {[%clk 0:02:15.5]} 45... Kxh4
{[%clk 0:00:26.8]} 46. Bxa5 {[%clk 0:02:14.2]} 46... Kg4 {[%clk 0:00:23.1]} 47.
Bc7 {[%clk 0:02:12]} 47... h4 {[%clk 0:00:20.8]} 48. a5 {[%clk 0:02:10.4]} 48...
h3 {[%clk 0:00:19.7]} 49. a6 {[%clk 0:02:08.3]} 49... h2 {[%clk 0:00:18.4]} 50.
a7 {[%clk 0:02:06.6]} 50... Bd5 {[%clk 0:00:17.4]} 51. e6 {[%clk 0:02:05.5]}
51... h1=Q {[%clk 0:00:14.3]} 52. e7 {[%clk 0:02:01.2]} 52... Qe1+ {[%clk
0:00:12]} 53. Kd4 {[%clk 0:01:58.5]} 53... Qe4+ {[%clk 0:00:10.1]} 54. Kc5
{[%clk 0:01:57.3]} 54... Qxe7+ {[%clk 0:00:08.6]} 55. Bd6 {[%clk 0:01:56.8]}
55... Qe4 {[%clk 0:00:05.7]} 56. Bc7 {[%clk 0:01:53.2]} 56... c3 {[%clk
0:00:04.5]} 57. Ba5 {[%clk 0:01:50.7]} 57... Qc4+ {[%clk 0:00:03.2]} 58. Kd6
{[%clk 0:01:47.4]} 58... Qc6+ {[%clk 0:00:02.1]} 59. Ke5 {[%clk 0:01:45.6]}
59... f6+ {[%clk 0:00:01.1]} 60. Kd4 {[%clk 0:01:40]} 1-0

[Event "Live Chess"]
[Site "Chess.com"]
[Date "2024.06.01"]
[Round "-"]
[White "McFim"]
[Black "TigerTank70"]
[Result "0-1"]
[WhiteElo "1624"]
[BlackElo "2223"]
[TimeControl "300"]
[EndTime "15:16:44 PDT"]
[Termination "TigerTank70 won on time"]

1. e4 {[%clk 0:04:56.8]} 1... e5 {[%clk 0:04:59.2]} 2. Nf3 {[%clk 0:04:55.4]}
2... Nc6 {[%clk 0:04:58.8]} 3. Bb5 {[%clk 0:04:53.8]} 3... a6 {[%clk 0:04:57.2]}
4. Ba4 {[%clk 0:04:52.5]} 4... Nf6 {[%clk 0:04:54.8]} 5. O-O {[%clk 0:04:50.8]}
5... b5 {[%clk 0:04:54]} 6. Bb3 {[%clk 0:04:49.6]} 6... Be7 {[%clk 0:04:53.4]}
7. Re1 {[%clk 0:04:48]} 7... O-O {[%clk 0:04:53]} 8. c3 {[%clk 0:04:46.9]} 8...
d5 {[%clk 0:04:52.1]} 9. exd5 {[%clk 0:04:45.6]} 9... Nxd5 {[%clk 0:04:52]} 10.
d4 {[%clk 0:04:43.2]} 10... exd4 {[%clk 0:04:48.1]} 11. Nxd4 {[%clk 0:04:41.1]}
11... Nxd4 {[%clk 0:04:39.5]} 12. Qxd4 {[%clk 0:04:35.7]} 12... c6 {[%clk
0:04:37.7]} 13. Nd2 {[%clk 0:04:01.7]} 13... Bf6 {[%clk 0:04:33.5]} 14. Qc5
{[%clk 0:03:58.3]} 14... Bb7 {[%clk 0:04:23.8]} 15. Ne4 {[%clk 0:03:48]} 15...
Be7 {[%clk 0:04:22]} 16. Qd4 {[%clk 0:03:45.6]} 16... Nf6 {[%clk 0:04:00.7]} 17.
Nxf6+ {[%clk 0:03:37.8]} 17... Bxf6 {[%clk 0:04:00.6]} 18. Qc5 {[%clk
0:03:26.3]} 18... Qc7 {[%clk 0:03:48]} 19. Bg5 {[%clk 0:03:13.8]} 19... Bxg5
{[%clk 0:03:42.8]} 20. Qxg5 {[%clk 0:03:11.5]} 20... Rae8 {[%clk 0:03:40.3]} 21.
Re3 {[%clk 0:03:00.9]} 21... Rxe3 {[%clk 0:03:37.1]} 22. Qxe3 {[%clk 0:02:58.7]}
22... c5 {[%clk 0:03:36.2]} 23. Re1 {[%clk 0:02:55.6]} 23... Qc6 {[%clk
0:03:31.2]} 24. f3 {[%clk 0:02:54.2]} 24... c4 {[%clk 0:03:29.7]} 25. Bc2 {[%clk
0:02:51.5]} 25... g6 {[%clk 0:03:24.9]} 26. Be4 {[%clk 0:02:16.5]} 26... Qc7
{[%clk 0:03:22]} 27. Bxb7 {[%clk 0:02:11.8]} 27... Qxb7 {[%clk 0:03:21.9]} 28.
Rd1 {[%clk 0:02:04.6]} 28... Qc6 {[%clk 0:03:18.8]} 29. Qd4 {[%clk 0:01:55.6]}
29... Re8 {[%clk 0:03:16.5]} 30. Kf2 {[%clk 0:01:45.8]} 30... Qc7 {[%clk
0:03:02.8]} 31. Qd6 {[%clk 0:01:41.1]} 31... Qa7+ {[%clk 0:02:57.1]} 32. Rd4
{[%clk 0:01:38.6]} 32... Re6 {[%clk 0:02:43.6]} 33. Qd8+ {[%clk 0:01:33.8]}
33... Kg7 {[%clk 0:02:42.3]} 34. g3 {[%clk 0:01:28.2]} 34... a5 {[%clk
0:02:33.9]} 35. h4 {[%clk 0:01:23]} 35... b4 {[%clk 0:02:31]} 36. Qd7 {[%clk
0:01:15.4]} 36... Qc5 {[%clk 0:02:21.2]} 37. Qd5 {[%clk 0:01:08]} 37... Qxd5
{[%clk 0:02:13.4]} 38. Rxd5 {[%clk 0:01:06.3]} 38... bxc3 {[%clk 0:02:08.9]} 39.
bxc3 {[%clk 0:01:04.5]} 39... Rb6 {[%clk 0:01:58.2]} 40. Rxa5 {[%clk 0:01:01.6]}
40... Rb2+ {[%clk 0:01:55.2]} 41. Ke3 {[%clk 0:01:00]} 41... Rc2 {[%clk
0:01:51.3]} 42. Ra4 {[%clk 0:00:53.8]} 42... Rxc3+ {[%clk 0:01:49.9]} 43. Ke4
{[%clk 0:00:52.5]} 43... f5+ {[%clk 0:01:48.4]} 44. Kf4 {[%clk 0:00:50.9]} 44...
Rc1 {[%clk 0:01:47.1]} 45. Ra7+ {[%clk 0:00:42.5]} 45... Kh6 {[%clk 0:01:43.7]}
46. g4 {[%clk 0:00:41.4]} 46... fxg4 {[%clk 0:01:38.8]} 47. fxg4 {[%clk
0:00:40.4]} 47... Rf1+ {[%clk 0:01:37]} 48. Ke3 {[%clk 0:00:38.4]} 48... g5
{[%clk 0:01:23.3]} 49. hxg5+ {[%clk 0:00:21.4]} 49... Kg6 {[%clk 0:01:21.6]} 50.
Ra6+ {[%clk 0:00:18.5]} 50... Kxg5 {[%clk 0:01:19.3]} 51. Kd4 {[%clk 0:00:17.3]}
51... Rf4+ {[%clk 0:01:17.1]} 52. Kc3 {[%clk 0:00:16.3]} 52... Kxg4 {[%clk
0:01:15.6]} 53. Rh6 {[%clk 0:00:14.6]} 53... Rf7 {[%clk 0:01:03.7]} 54. Kxc4
{[%clk 0:00:13.1]} 54... Kg5 {[%clk 0:01:03.2]} 55. Rh1 {[%clk 0:00:11.4]} 55...
h5 {[%clk 0:01:02.6]} 56. a4 {[%clk 0:00:09.5]} 56... h4 {[%clk 0:01:00.3]} 57.
Kb5 {[%clk 0:00:08.4]} 57... Kg4 {[%clk 0:00:59.5]} 58. a5 {[%clk 0:00:07.4]}
58... h3 {[%clk 0:00:56.9]} 59. a6 {[%clk 0:00:06.1]} 59... Kg3 {[%clk
0:00:56.5]} 60. Kb6 {[%clk 0:00:04.9]} 60... Kg2 {[%clk 0:00:55.7]} 61. Rxh3
{[%clk 0:00:03.3]} 61... Kxh3 {[%clk 0:00:53.5]} 62. a7 {[%clk 0:00:03]} 62...
Rf6+ {[%clk 0:00:50.6]} 63. Kb7 {[%clk 0:00:02]} 63... Rf7+ {[%clk 0:00:49.8]}
64. Kb8 {[%clk 0:00:01.1]} 64... Rf8+ {[%clk 0:00:48]} 0-1

[Event "Live Chess"]
[Site "Chess.com"]
[Date "2024.06.01"]
[Round "-"]
[White "cymbalshift"]
[Black "katoma"]
[Result "0-1"]
[WhiteElo "1645"]
[BlackElo "2060"]
[TimeControl "300"]
[EndTime "15:17:01 PDT"]
[Termination "katoma won by resignation"]

1. d4 {[%clk 0:04:58.1]} 1... Nf6 {[%clk 0:04:57.7]} 2. c4 {[%clk 0:04:54.8]}
2... g6 {[%clk 0:04:55.1]} 3. Nc3 {[%clk 0:04:53.6]} 3... d5 {[%clk 0:04:54]} 4.
cxd5 {[%clk 0:04:51.6]} 4... Nxd5 {[%clk 0:04:52.6]} 5. e4 {[%clk 0:04:51.2]}
5... Nxc3 {[%clk 0:04:50.2]} 6. bxc3 {[%clk 0:04:50.8]} 6... Bg7 {[%clk
0:04:49.3]} 7. Nf3 {[%clk 0:04:49.2]} 7... c5 {[%clk 0:04:48.2]} 8. Rb1 {[%clk
0:04:47.9]} 8... O-O {[%clk 0:04:44.4]} 9. Be2 {[%clk 0:04:45.6]} 9... Nc6
{[%clk 0:04:43.4]} 10. d5 {[%clk 0:04:40.4]} 10... Bxc3+ {[%clk 0:04:37.7]} 11.
Bd2 {[%clk 0:04:37.7]} 11... Bxd2+ {[%clk 0:04:34.5]} 12. Qxd2 {[%clk
0:04:36.5]} 12... Na5 {[%clk 0:04:17.5]} 13. h4 {[%clk 0:04:33.3]} 13... Bg4
{[%clk 0:04:10.8]} 14. h5 {[%clk 0:04:18.8]} 14... Bxf3 {[%clk 0:03:57.7]} 15.
Bxf3 {[%clk 0:03:47.9]} 15... Nc4 {[%clk 0:03:55.8]} 16. Qh6 {[%clk 0:03:40.9]}
16... Qa5+ {[%clk 0:03:50.5]} 17. Ke2 {[%clk 0:03:19.9]} 17... Qxa2+ {[%clk
0:03:39.2]} 18. Kd3 {[%clk 0:03:12.6]} 18... Ne5+ {[%clk 0:03:31.1]} 19. Kc3
{[%clk 0:03:01.2]} 19... Qc4+ {[%clk 0:03:23.3]} 20. Kd2 {[%clk 0:02:51.7]}
20... Qd4+ {[%clk 0:02:33.9]} 21. Kc2 {[%clk 0:02:40.4]} 21... Nxf3 {[%clk
0:02:21.3]} 22. hxg6 {[%clk 0:02:31.2]} 22... Qxe4+ {[%clk 0:02:19.6]} 23. Kb2
{[%clk 0:02:24.3]} 23... Qxg6 {[%clk 0:02:10.6]} 24. gxf3 {[%clk 0:02:16.3]}
24... Qxh6 {[%clk 0:02:06.9]} 25. Rxh6 {[%clk 0:02:15]} 25... f6 {[%clk
0:01:54.3]} 26. Rg1+ {[%clk 0:02:12.4]} 26... Kh8 {[%clk 0:01:51.6]} 0-1

[Event "Live Chess"]
[Site "Chess.com"]
[Date "2024.06.01"]
[Round "-"]
[White "LL220284LL"]
[Black "gmnorfolk"]
[Result "0-1"]
[WhiteElo "2503"]
[BlackElo "2133"]
[TimeControl "300"]
[EndTime "15:17:10 PDT"]
[Termination "gmnorfolk won by resignation"]

1. g3 {[%clk 0:04:50.4]} 1... e5 {[%clk 0:04:57.4]} 2. Bg2 {[%clk 0:04:50.3]}
2... Nf6 {[%clk 0:04:55.2]} 3. c4 {[%clk 0:04:50.2]} 3... c6 {[%clk 0:04:53.6]}
4. d3 {[%clk 0:04:50.1]} 4... d5 {[%clk 0:04:51.9]} 5. cxd5 {[%clk 0:04:50]}
5... cxd5 {[%clk 0:04:50.6]} 6. Nf3 {[%clk 0:04:49.7]} 6... Nc6 {[%clk
0:04:48.5]} 7. O-O {[%clk 0:04:48.4]} 7... h6 {[%clk 0:04:42.1]} 8. Nc3 {[%clk
0:04:45.8]} 8... Be6 {[%clk 0:04:40.1]} 9. b3 {[%clk 0:04:44]} 9... Qd7 {[%clk
0:04:36.4]} 10. Bb2 {[%clk 0:04:42.7]} 10... Be7 {[%clk 0:04:32.3]} 11. Rc1
{[%clk 0:04:40.7]} 11... O-O {[%clk 0:04:22.6]} 12. Na4 {[%clk 0:04:38.1]} 12...
b6 {[%clk 0:04:18.4]} 13. Nxe5 {[%clk 0:04:36.4]} 13... Nxe5 {[%clk 0:04:15.7]}
14. Bxe5 {[%clk 0:04:36.3]} 14... Rac8 {[%clk 0:04:12.9]} 15. Qd2 {[%clk
0:04:29.8]} 15... Ng4 {[%clk 0:04:06.1]} 16. Ba1 {[%clk 0:04:27.2]} 16... d4
{[%clk 0:03:59.1]} 17. Nb2 {[%clk 0:04:20]} 17... Bg5 {[%clk 0:03:55.4]} 18. f4
{[%clk 0:04:17.2]} 18... Bf6 {[%clk 0:03:48.6]} 19. Rxc8 {[%clk 0:04:15.9]}
19... Rxc8 {[%clk 0:03:46.3]} 20. Rc1 {[%clk 0:04:15.4]} 20... Ne3 {[%clk
0:03:41]} 21. Bf3 {[%clk 0:04:10.9]} 21... g5 {[%clk 0:03:34.9]} 22. Rxc8+
{[%clk 0:04:00.6]} 22... Qxc8 {[%clk 0:03:32.5]} 23. Nc4 {[%clk 0:04:00.1]}
23... Bxc4 {[%clk 0:03:25.2]} 24. dxc4 {[%clk 0:03:57.1]} 24... Qd7 {[%clk
0:03:15.7]} 25. fxg5 {[%clk 0:03:53.2]} 25... hxg5 {[%clk 0:03:12.5]} 26. Qd3
{[%clk 0:03:50.4]} 26... Qh3 {[%clk 0:02:58.9]} 27. Qb1 {[%clk 0:03:37.4]} 27...
Be5 {[%clk 0:02:51]} 28. b4 {[%clk 0:03:29.5]} 28... g4 {[%clk 0:02:30.8]} 29.
Be4 {[%clk 0:03:24.6]} 29... Bxg3 {[%clk 0:02:17.8]} 30. hxg3 {[%clk 0:03:21.7]}
30... Qxg3+ {[%clk 0:02:15.7]} 31. Kh1 {[%clk 0:03:21.1]} 31... Qh4+ {[%clk
0:02:11.6]} 32. Kg1 {[%clk 0:03:18.9]} 32... g3 {[%clk 0:02:08.9]} 0-1

[Event "Live Chess"]
[Site "Chess.com"]
[Date "2024.06.01"]
[Round "-"]
[White "CheckThis4"]
[Black "degringolade64"]
[Result "1-0"]
[WhiteElo "2685"]
[BlackElo "2114"]
[TimeControl "300"]
[EndTime "15:17:49 PDT"]
[Termination "CheckThis4 won by resignation"]

1. e4 {[%clk 0:04:54.8]} 1... e5 {[%clk 0:04:58.8]} 2. Nf3 {[%clk 0:04:52.9]}
2... Nc6 {[%clk 0:04:57.8]} 3. Bb5 {[%clk 0:04:51.7]} 3... a6 {[%clk 0:04:56]}
4. Ba4 {[%clk 0:04:50.4]} 4... Nf6 {[%clk 0:04:54.2]} 5. O-O {[%clk 0:04:46.1]}
5... Bc5 {[%clk 0:04:49.5]} 6. c3 {[%clk 0:04:41.1]} 6... b5 {[%clk 0:04:47.9]}
7. Bc2 {[%clk 0:04:38.6]} 7... d5 {[%clk 0:04:46.4]} 8. d4 {[%clk 0:04:26.6]}
8... dxe4 {[%clk 0:04:39.7]} 9. dxc5 {[%clk 0:04:24.6]} 9... Qxd1 {[%clk
0:04:32.8]} 10. Rxd1 {[%clk 0:04:14.4]} 10... exf3 {[%clk 0:04:31.3]} 11. a4
{[%clk 0:04:11.9]} 11... b4 {[%clk 0:04:00.6]} 12. gxf3 {[%clk 0:04:10.2]} 12...
O-O {[%clk 0:03:43.8]} 13. Bg5 {[%clk 0:04:07.4]} 13... Nh5 {[%clk 0:03:28.1]}
14. Be4 {[%clk 0:04:01.9]} 14... Bb7 {[%clk 0:03:19.5]} 15. cxb4 {[%clk
0:04:00.4]} 15... f6 {[%clk 0:03:13.7]} 16. Be3 {[%clk 0:03:55.5]} 16... Rad8
{[%clk 0:03:10]} 17. Nc3 {[%clk 0:03:52.5]} 17... Ba8 {[%clk 0:02:58.7]} 18. b5
{[%clk 0:03:50]} 18... Nd4 {[%clk 0:02:55.1]} 19. Bxa8 {[%clk 0:03:33.3]} 19...
Rxa8 {[%clk 0:02:52.3]} 20. Bxd4 {[%clk 0:03:31.6]} 20... exd4 {[%clk
0:02:50.4]} 21. Rxd4 {[%clk 0:03:30.6]} 21... axb5 {[%clk 0:02:49.2]} 22. Nxb5
{[%clk 0:03:29]} 22... c6 {[%clk 0:02:38.9]} 23. Nd6 {[%clk 0:03:27.5]} 23...
Rfb8 {[%clk 0:02:33.9]} 24. b4 {[%clk 0:03:25.2]} 24... g5 {[%clk 0:02:28]} 25.
Ne4 {[%clk 0:03:15.2]} 25... Nf4 {[%clk 0:02:15.6]} 26. Rd7 {[%clk 0:03:09.8]}
26... Rxb4 {[%clk 0:02:07.2]} 27. Nxf6+ {[%clk 0:03:08.2]} 27... Kf8 {[%clk
0:02:05.9]} 28. Nxh7+ {[%clk 0:03:06.7]} 28... Kg8 {[%clk 0:02:04.4]} 29. Nf6+
{[%clk 0:03:05.2]} 29... Kf8 {[%clk 0:02:02.9]} 30. a5 {[%clk 0:02:44.4]} 30...
Rxa5 {[%clk 0:01:59.9]} 31. Nh7+ {[%clk 0:02:38.2]} 31... Kg8 {[%clk 0:01:56.1]}
32. Re1 {[%clk 0:02:23.4]} 32... Ra8 {[%clk 0:01:49.2]} 33. Nf6+ {[%clk
0:02:15.1]} 33... Kf8 {[%clk 0:01:47.4]} 34. h4 {[%clk 0:02:09.6]} 34... Nh3+
{[%clk 0:01:16.7]} 35. Kg2 {[%clk 0:02:03.9]} 35... Rxh4 {[%clk 0:01:12.3]} 36.
Ree7 {[%clk 0:01:52.7]} 36... Nf4+ {[%clk 0:01:10.4]} 37. Kg3 {[%clk 0:01:51.5]}
37... Nh5+ {[%clk 0:00:37.7]} 38. Nxh5 {[%clk 0:01:48.6]} 38... Rxh5 {[%clk
0:00:37.6]} 39. Rf7+ {[%clk 0:01:34.9]} 39... Kg8 {[%clk 0:00:34]} 40. Rg7+
{[%clk 0:01:33.3]} 40... Kh8 {[%clk 0:00:27.8]} 41. Rg6 {[%clk 0:01:25.2]} 41...
g4 {[%clk 0:00:18.1]} 42. fxg4 {[%clk 0:01:20.5]} 42... Rxc5 {[%clk 0:00:16.3]}
43. Re6 {[%clk 0:01:13.8]} 43... Ra3+ {[%clk 0:00:13.2]} 44. f3 {[%clk
0:01:12.2]} 44... Ra8 {[%clk 0:00:12.6]} 45. Ree7 {[%clk 0:01:05.6]} 45... Rc3
{[%clk 0:00:11.3]} 46. g5 {[%clk 0:01:02.7]} 46... c5 {[%clk 0:00:05.6]} 47. g6
{[%clk 0:01:00.3]} 47... Ra6 {[%clk 0:00:00.4]} 1-0